bitfinex-derivatives/quotes_BNBF0:USTF0_20250425
["timestamp","ask_amount","ask_price","bid_price","bid_amount"]
[1745560915263,1.10790253,606.07,604.67,0.30346783]
[1745560915568,1.10790253,606.06,604.67,0.30346783]
[1745560916365,1.10790253,606.05,604.67,0.30346783]
[1745560916969,1.10790253,606.04,604.67,0.30346783]
[1745560917270,1.10790253,606.04,604.68,0.30347007]
[1745560917466,1.10790253,606.03,604.67,0.30347007]
[1745560917664,1.10790253,606.03,604.68,0.30347007]
[1745560917964,1.10790253,606.03,604.69,0.30347007]
[1745560918268,1.10790253,606.03,604.7,0.30347007]
[1745560918474,1.10790253,606.03,604.67,0.30347007]
[1745560918669,1.10790253,606.02,604.67,0.30347007]
[1745560919367,1.10790253,606.01,604.67,0.30347007]
[1745560920173,1.10790253,606.0,604.67,0.30347007]
[1745560920373,1.10790253,606.0,604.68,0.30346957]
[1745560920570,1.10790253,605.99,604.67,0.30346957]
[1745560921171,1.10790253,605.98,604.67,0.30346957]
[1745560922369,1.10790253,605.97,604.67,0.30346957]
[1745560922776,1.10790253,605.96,604.67,0.30346957]
[1745560923277,1.10790253,605.95,604.67,0.30346957]
[1745560923476,1.10790253,605.95,604.66,2.751]
[1745560924077,1.10790253,605.94,604.66,2.751]
[1745560924677,2.15072968,607.82,604.66,2.751]
[1745560924678,1.10790253,605.93,604.66,2.751]
[1745560924976,1.26410234,606.83,604.66,2.751]
[1745560926477,1.26410234,606.83,604.66,3.801]
[1745560927678,1.26410234,606.75,604.66,3.801]
[1745560929174,1.26410234,606.75,604.67,0.30355545]
[1745560930379,1.26410234,606.75,604.66,3.801]
[1745560930380,1.26410234,606.59,604.66,3.801]
[1745560932182,1.26410234,606.59,604.66,5.046]
[1745560932881,1.26410234,606.74,604.66,5.046]
[1745560934682,0.28747857,606.73,604.66,5.046]
[1745560935181,1.26410234,606.77,604.66,5.046]
[1745560935483,0.28747501,606.72,604.66,5.046]
[1745560938096,1.26410234,606.78,604.66,5.046]
[1745560939383,0.28747382,606.77,604.66,5.046]
[1745560941293,1.26410234,607.01,604.66,5.046]
[1745560941491,0.28744652,606.76,604.66,5.046]
[1745560941789,1.26410234,607.01,604.66,5.046]
[1745560942491,0.28744652,607.0,604.66,5.046]
[1745560944088,1.26410234,607.08,604.66,5.046]
[1745560944394,0.28743821,606.99,604.66,5.046]
[1745560944693,1.26410234,607.08,604.66,5.046]
[1745560945395,0.28743108,607.07,604.66,5.046]
[1745560947101,1.26410234,607.1,604.66,5.046]
[1745560947495,0.28742159,607.06,604.66,5.046]
[1745560949599,1.26410234,606.98,604.66,5.046]
[1745560951999,1.1068672,606.97,604.66,5.046]
[1745560952795,1.1068672,606.96,604.66,5.046]
[1745560953496,1.39429354,606.95,604.66,5.046]
[1745560953900,1.1068672,606.94,604.66,5.046]
[1745560954296,1.1068672,606.93,604.66,5.046]
[1745560955098,1.1068672,606.92,604.66,5.046]
[1745560955704,1.1068672,606.91,604.66,5.046]
[1745560955996,1.1068672,606.9,604.66,5.046]
[1745560956402,0.28743346,606.89,604.66,5.046]
[1745560956600,1.1068672,606.88,604.66,5.046]
[1745560957407,1.1068672,606.87,604.66,5.046]
[1745560958106,1.1068672,606.86,604.66,5.046]
[1745560959002,1.1068672,606.85,604.66,5.046]
[1745560959602,1.39429947,606.84,604.66,5.046]
[1745560959908,1.1068672,606.83,604.66,5.046]
[1745560960603,1.1068672,606.82,604.66,5.046]
[1745560960805,2.37096954,606.82,604.66,5.046]
[1745560961105,1.1068672,606.81,604.67,0.30352255]
[1745560961606,1.1068672,606.8,604.67,0.30352255]
[1745560962005,1.1068672,606.79,604.67,0.30352255]
[1745560962201,1.1068672,606.78,604.67,0.30352255]
[1745560962701,1.26410234,606.82,604.67,0.30352255]
[1745560962899,1.10707062,606.77,604.67,0.30352255]
[1745560963309,1.26410234,606.75,604.67,0.30352255]
[1745560963900,1.26410234,606.75,604.67,2.93852255]
[1745560964108,1.10707062,606.74,604.68,0.30352255]
[1745560964407,1.10707062,606.74,604.67,2.635]
[1745560964607,1.10707062,606.74,604.68,0.30348217]
[1745560964808,1.10707062,606.73,604.68,0.30348217]
[1745560965405,1.39450645,606.72,604.68,0.30348217]
[1745560965906,1.10707062,606.71,604.68,0.30348217]
[1745560966107,1.10707062,606.7,604.69,0.30347721]
[1745560966408,1.10707062,606.7,604.7,0.30347721]
[1745560966609,1.10707062,606.69,604.68,0.30347721]
[1745560967107,1.10707062,606.68,604.68,0.30347721]
[1745560967507,1.10707062,606.67,604.68,0.30347721]
[1745560967808,1.10707062,606.66,604.69,0.30347668]
[1745560968008,1.10707062,606.65,604.68,0.30347668]
[1745560968210,1.10707062,606.65,604.69,0.30347668]
[1745560968411,1.39451476,606.65,604.68,0.59092082]
[1745560968605,1.39451476,606.65,604.69,0.30347668]
[1745560968808,1.10707062,606.64,604.69,0.30347668]
[1745560969111,1.10707062,606.63,604.69,0.30347668]
[1745560969512,1.10707062,606.62,604.69,0.30347668]
[1745560970311,1.10707062,606.61,604.69,0.30347668]
[1745560970915,1.10707062,606.6,604.69,0.30347668]
[1745560971306,1.10707062,606.6,604.68,0.30347668]
[1745560971511,0.28743108,606.59,604.68,0.59090776]
[1745560971707,1.3945017,606.59,604.69,0.30347668]
[1745560972514,1.10707062,606.58,604.7,0.30343813]
[1745560972713,1.10707062,606.58,604.69,0.30343813]
[1745560972914,1.10707062,606.58,604.7,0.30343813]
[1745560973113,1.10707062,606.57,604.71,0.30343813]
[1745560973313,1.10707062,606.57,604.69,0.30343813]
[1745560973514,1.10707062,606.57,604.7,0.30343813]
[1745560973713,1.10707062,606.56,604.71,0.30343813]
[1745560973907,1.10707062,606.56,604.69,0.30343813]
[1745560974111,1.10707062,606.56,604.7,0.30343813]
[1745560974313,1.10707062,606.55,604.69,0.30343813]
[1745560974512,1.10707062,606.55,604.7,0.30343813]
[1745560974716,1.10707062,606.55,604.71,0.30343813]
[1745560974910,1.10707062,606.54,604.69,0.30343813]
[1745560975113,1.10707062,606.54,604.68,0.28743108]
[1745560975114,1.10707062,606.54,604.7,0.30343813]
[1745560975317,1.10707062,606.54,604.69,0.30343813]
[1745560975513,1.10707062,606.53,604.7,0.30343813]
[1745560975712,1.10707062,606.53,604.69,0.30343813]
[1745560976014,1.10707062,606.52,604.7,1.175]
[1745560976310,1.10707062,606.52,604.71,0.30343813]
[1745560976714,1.10707062,606.51,604.71,0.30343813]
[1745560977313,1.10707062,606.5,604.71,0.30343813]
[1745560977614,0.28743227,606.5,604.71,0.30343813]
[1745560977824,1.10690806,606.49,604.71,0.30343813]
[1745560978316,1.10690806,606.48,604.71,0.30343813]
[1745560978517,1.10690806,606.47,604.71,0.30343813]
[1745560978816,1.10690806,606.47,604.7,1.175]
[1745560979017,1.10690806,606.46,604.71,0.30341374]
[1745560979516,1.10690806,606.45,604.71,0.30341374]
[1745560980117,1.10690806,606.44,604.71,0.30341374]
[1745560980520,1.10690806,606.44,604.7,1.175]
[1745560980720,1.10690806,606.43,604.71,0.3034101]
[1745560981572,1.10690806,606.42,604.71,0.3034101]
[1745560982020,1.10690806,606.41,604.71,0.3034101]
[1745560982623,1.10690806,606.4,604.71,0.3034101]
[1745560983223,1.10690806,606.39,604.71,0.3034101]
[1745560983432,1.39435814,606.39,604.71,0.3034101]
[1745560983721,1.10690806,606.38,604.71,0.3034101]
[1745560984123,1.10690806,606.38,604.72,1.37]
[1745560984334,1.10690806,606.37,604.72,1.37]
[1745560984528,1.10690806,606.37,604.73,0.30343027]
[1745560984820,1.10690806,606.36,604.73,1.65643027]
[1745560985025,1.10690806,606.35,604.74,0.30343027]
[1745560985521,1.10690806,606.34,604.74,0.30343027]
[1745560985725,1.10690806,606.33,604.74,0.30343027]
[1745560986331,1.10586496,606.32,604.74,0.30343027]
[1745560986724,1.10586496,606.31,604.74,0.30343027]
[1745560987026,1.10586496,606.3,604.74,0.30343027]
[1745560987725,1.10586496,606.29,604.74,0.30343027]
[1745560988227,1.10586496,606.28,604.73,1.353]
[1745560988425,1.10586496,606.28,604.75,1.366]
[1745560988625,1.10586496,606.27,604.75,1.366]
[1745560989029,1.10586496,606.26,604.75,1.366]
[1745560989431,1.10586496,606.25,604.75,1.366]
[1745560989729,1.3933566,606.25,604.76,0.30347972]
[1745560989923,1.3933566,606.25,604.75,1.366]
[1745560990126,1.3933566,606.25,604.76,0.30347682]
[1745560990328,1.10586496,606.24,604.76,0.30347682]
[1745560990525,1.10586496,606.23,604.76,0.30347682]
[1745560991036,1.10586496,606.22,604.76,0.30347682]
[1745560991534,1.10586496,606.21,604.77,0.30347108]
[1745560991735,1.10586496,606.21,604.76,0.30347108]
[1745560992131,1.10586496,606.2,604.76,0.30347108]
[1745560992837,1.10586496,606.19,604.76,0.30347108]
[1745560993233,1.10586496,606.18,604.76,0.30347108]
[1745560993534,1.10586496,606.18,604.75,1.366]
[1745560993733,1.10586496,606.18,604.76,0.30346415]
[1745560994033,1.10586496,606.17,604.76,0.30346415]
[1745560994234,1.10586496,606.16,604.77,1.543]
[1745560995035,1.10586496,606.15,604.77,1.543]
[1745560995730,1.10586496,606.14,604.78,0.30346137]
[1745560996435,1.10586496,606.13,604.78,0.30346137]
[1745560997131,1.10586496,606.12,604.78,0.30346137]
[1745560997738,1.10586496,606.11,604.78,0.30346137]
[1745560997939,1.10586496,606.1,604.79,0.3034423]
[1745560998136,1.10586496,606.1,604.78,0.3034423]
[1745560998337,1.10586496,606.1,604.79,0.3034423]
[1745560998532,1.10586496,606.09,604.8,0.3034423]
[1745560998837,1.10586496,606.09,604.81,0.3034423]
[1745560999036,1.10586496,606.08,604.82,0.3034423]
[1745560999232,1.10586496,606.08,604.78,0.3034423]
[1745560999538,1.10586496,606.08,604.79,0.30344617]
[1745560999736,1.10586496,606.08,604.78,0.30344617]
[1745560999936,1.10586496,606.07,604.79,0.30344617]
[1745561000136,1.10586496,606.06,604.78,0.30344617]
[1745561000339,1.10586496,606.06,604.77,1.543]
[1745561000340,1.10586496,606.06,604.79,0.30344617]
[1745561000534,1.10586496,606.05,604.8,0.30344617]
[1745561000735,1.10586496,606.05,604.78,0.30344617]
[1745561000939,1.10586496,606.05,604.79,0.30344617]
[1745561001141,1.10586496,606.04,604.8,0.30343019]
[1745561001341,1.10586496,606.04,604.78,0.30343019]
[1745561001642,1.10586496,606.04,604.79,0.30343019]
[1745561001838,1.10586496,606.03,604.8,0.30343019]
[1745561002142,1.10586496,606.02,604.81,0.30343019]
[1745561002342,1.10586496,606.02,604.78,0.30343019]
[1745561002649,1.10586496,606.02,604.77,1.543]
[1745561002844,1.10586496,606.02,604.78,0.30343044]
[1745561003245,1.10586496,606.01,604.78,0.30343044]
[1745561003741,1.10586496,606.0,604.78,0.30343044]
[1745561004345,1.10586496,605.99,604.78,0.30343044]
[1745561004645,1.10586496,605.98,604.78,0.30343044]
[1745561005045,1.10586496,605.97,604.78,0.30343044]
[1745561005747,1.10586496,605.96,604.77,1.83048451]
[1745561006045,1.10586496,605.96,604.78,0.30340973]
[1745561006743,1.10586496,605.95,604.78,0.30340973]
[1745561006947,1.10586496,605.94,604.78,0.30340973]
[1745561007366,1.10586496,605.93,604.78,1.409]
[1745561007549,1.10586496,605.93,604.79,0.30341289]
[1745561007749,1.10586496,605.92,604.79,0.30341289]
[1745561008050,1.10586496,605.91,604.79,0.30341289]
[1745561008852,1.10586496,605.9,604.78,1.409]
[1745561009058,1.10586496,605.9,604.79,0.30339582]
[1745561009352,1.10586496,605.89,604.79,0.30339582]
[1745561009849,1.10586496,605.88,604.79,0.30339582]
[1745561010151,1.10586496,605.87,604.79,0.30339582]
[1745561010649,1.10586496,605.86,604.79,0.30339582]
[1745561011453,1.10586496,605.85,604.79,0.30339582]
[1745561011853,1.10586496,605.84,604.79,0.30339582]
[1745561012551,1.10586496,605.83,604.79,0.30339582]
[1745561013052,1.10586496,605.82,604.79,0.30339582]
[1745561013752,1.10586496,605.81,604.79,0.30339582]
[1745561014251,1.10586496,605.81,604.79,1.40739582]
[1745561014454,1.10586496,605.8,604.8,0.30339582]
[1745561015054,1.10586496,605.79,604.8,0.30339582]
[1745561015555,1.10586496,605.78,604.8,0.30339582]
[1745561016351,1.10586496,605.77,604.8,0.30339582]
[1745561016553,1.10586496,605.76,604.8,0.30339582]
[1745561016755,1.10586496,605.76,604.79,1.39149876]
[1745561016954,1.10586496,605.76,604.8,0.30338809]
[1745561017251,1.10586496,605.75,604.8,0.30338809]
[1745561017458,1.10586496,605.74,604.8,0.30338809]
[1745561018257,1.10586496,605.73,604.79,1.39149876]
[1745561018458,1.10586496,605.73,604.8,0.30338888]
[1745561018652,1.10586496,605.72,604.8,0.30338888]
[1745561018850,1.10586496,605.71,604.8,0.30338888]
[1745561019556,1.10586496,605.7,604.8,0.30338888]
[1745561020156,1.10586496,605.69,604.8,0.30338888]
[1745561020560,1.10586496,605.68,604.8,0.30338888]
[1745561020858,1.10586496,605.67,604.8,0.30338888]
[1745561021157,1.10586496,605.66,604.8,0.30338888]
[1745561021458,1.10586496,605.66,604.79,1.39150707]
[1745561021651,1.10586496,605.66,604.8,0.30338912]
[1745561021851,1.10586496,605.65,604.8,0.30338912]
[1745561022359,1.10586496,605.64,604.79,1.104]
[1745561022562,1.10586496,605.64,604.8,0.30339094]
[1745561022759,1.10586496,605.63,604.8,0.30339094]
[1745561022964,1.10586496,605.63,604.79,1.3915142]
[1745561023160,1.10586496,605.63,604.8,0.30339068]
[1745561023664,1.10586496,605.62,604.8,0.30339068]
[1745561024561,1.10586496,605.61,604.8,0.30339068]
[1745561025461,1.10586496,605.6,604.8,0.30339068]
[1745561025756,1.10586496,605.59,604.8,0.30339068]
[1745561026067,1.10586496,605.59,604.79,1.104]
[1745561026262,1.10586496,605.58,604.8,0.30336668]
[1745561026661,1.10586496,605.57,604.8,0.30336668]
[1745561027461,1.10586496,605.56,604.8,0.30336668]
[1745561027761,1.10586496,605.55,604.8,0.30336668]
[1745561028361,1.10586496,605.54,604.8,0.30336668]
[1745561028559,1.10586496,605.54,604.81,1.04369045]
[1745561028760,1.10586496,605.54,604.82,0.30336668]
[1745561029058,1.10586496,605.53,604.82,0.30336668]
[1745561029259,1.10586496,605.52,604.82,0.30336668]
[1745561029765,1.10586496,605.51,604.82,0.30336668]
[1745561029963,1.10586496,605.51,604.83,0.30335986]
[1745561030160,1.26410234,606.94,604.82,0.30335986]
[1745561030161,1.10586496,605.5,604.82,0.30335986]
[1745561030364,1.10586496,605.5,604.83,0.30335986]
[1745561030565,1.10586496,605.49,604.82,0.30335986]
[1745561030870,1.10586496,605.48,604.82,0.30335986]
[1745561031066,1.10586496,605.48,604.82,1.34705031]
[1745561031270,1.10586496,605.48,604.83,0.30335986]
[1745561031566,1.10586496,605.47,604.83,0.30335986]
[1745561031965,1.10586496,605.46,604.83,0.30335986]
[1745561032467,1.10586496,605.45,604.84,0.3033675]
[1745561032666,1.10586496,605.45,604.83,0.3033675]
[1745561033266,1.26410234,606.96,604.83,0.3033675]
[1745561033267,1.10586496,605.44,604.83,0.3033675]
[1745561033968,1.10586496,605.44,604.82,1.04369045]
[1745561034168,1.10586496,605.44,604.83,0.30336107]
[1745561034370,1.10586496,605.43,604.83,0.30336107]
[1745561034763,1.10586496,605.42,604.83,0.30336107]
[1745561035168,1.10586496,605.41,604.83,0.30336107]
[1745561035966,1.10586496,605.4,604.82,1.04369045]
[1745561036164,1.10586496,605.4,604.83,0.30334888]
[1745561036368,1.26410234,606.93,604.83,0.30334888]
[1745561036369,1.10586496,605.39,604.83,0.30334888]
[1745561036672,0.60760932,612.66,604.81,0.28751658]
[1745561036673,1.10586496,605.38,604.95,1.04369045]
[1745561036868,1.10586496,605.38,604.96,0.30334693]
[1745561037372,1.10586496,605.37,604.96,0.30334693]
[1745561037970,1.10586496,605.36,604.96,0.30334693]
[1745561038374,1.26410234,606.75,604.96,0.30334693]
[1745561038571,1.10836126,606.74,604.96,0.30334693]
[1745561038967,1.10836126,606.73,604.96,0.30334693]
[1745561039172,1.39569623,606.73,604.88,0.30334693]
[1745561039372,1.39569623,606.73,604.89,0.30334693]
[1745561039681,1.10836126,606.72,604.9,0.30334693]
[1745561039872,1.10836126,606.71,604.91,0.30334693]
[1745561040071,1.10836126,606.71,604.88,0.30334693]
[1745561040274,1.10836126,606.71,604.86,1.04369045]
[1745561040469,1.39570928,606.7,604.87,0.59067536]
[1745561040670,1.39570928,606.7,604.88,0.30332734]
[1745561041073,1.10836126,606.69,604.88,0.30332734]
[1745561041275,1.10836126,606.69,604.87,1.51334802]
[1745561041472,1.10836126,606.68,604.88,0.30330203]
[1745561041974,1.10836126,606.67,604.88,0.30330203]
[1745561042574,1.10836126,606.66,604.88,0.30330203]
[1745561042977,1.10836126,606.65,604.88,0.30330203]
[1745561043469,1.10836126,606.64,604.88,0.30330203]
[1745561044078,1.10836126,606.63,604.88,0.30330203]
[1745561044277,1.10836126,606.62,604.88,0.30330203]
[1745561044479,1.10836126,606.61,604.87,1.51334802]
[1745561044677,1.10836126,606.61,604.88,0.30330012]
[1745561045077,1.10836126,606.6,604.88,0.30330012]
[1745561045579,1.10836126,606.59,604.88,0.30330012]
[1745561046487,1.10836126,606.58,604.88,0.30330012]
[1745561047182,1.10836126,606.57,604.88,0.30330012]
[1745561047980,1.10836126,606.56,604.88,0.30330012]
[1745561048282,1.10836126,606.56,604.89,1.24]
[1745561048482,1.10836126,606.55,604.9,0.30330012]
[1745561048981,1.10836126,606.54,604.9,0.30330012]
[1745561049378,1.10836126,606.53,604.9,0.30330012]
[1745561049680,1.10836126,606.52,604.9,0.30330012]
[1745561050282,1.10836126,606.51,604.9,0.30330012]
[1745561050582,1.10836126,606.51,604.89,1.52735395]
[1745561050782,1.10836126,606.51,604.9,0.3032924]
[1745561050984,1.10836126,606.5,604.9,0.3032924]
[1745561051282,1.10836126,606.49,604.9,0.3032924]
[1745561051878,1.10836126,606.48,604.9,0.3032924]
[1745561052783,1.10836126,606.47,604.9,0.3032924]
[1745561053579,1.10836126,606.46,604.9,0.3032924]
[1745561053781,1.10836126,606.46,604.91,0.3032929]
[1745561053983,1.10836126,606.45,604.9,0.3032929]
[1745561054183,1.10836126,606.45,604.91,0.3032929]
[1745561054380,1.10836126,606.44,604.9,0.3032929]
[1745561054879,1.10836126,606.43,604.9,0.3032929]
[1745561055686,1.10836126,606.42,604.9,0.3032929]
[1745561055882,1.10836126,606.41,604.9,0.3032929]
[1745561056289,1.10836126,606.4,604.9,0.3032929]
[1745561056689,1.10836126,606.39,604.89,1.52736463]
[1745561056893,1.10836126,606.39,604.9,0.30330405]
[1745561057189,1.10836126,606.39,604.9,1.72430405]
[1745561057388,1.10836126,606.38,604.91,0.30330405]
[1745561057882,1.10707708,606.37,604.91,0.30330405]
[1745561058088,1.10707708,606.37,604.9,1.421]
[1745561058280,1.10707708,606.36,604.9,1.421]
[1745561058791,1.26410234,607.47,604.9,1.421]
[1745561058792,1.10707708,606.35,604.9,1.421]
[1745561059245,1.10707708,606.34,604.91,0.30330041]
[1745561059596,1.10707708,606.33,604.91,0.30330041]
[1745561060386,1.10707708,606.32,604.91,0.30330041]
[1745561061194,1.10707708,606.31,604.91,0.30330041]
[1745561061697,1.10707708,606.3,604.91,0.30330041]
[1745561062493,1.10707708,606.29,604.91,0.30330041]
[1745561062695,1.10707708,606.29,604.91,1.30230041]
[1745561062895,1.10707708,606.28,604.92,0.30330041]
[1745561063093,1.10707708,606.28,604.91,0.999]
[1745561063288,1.10707708,606.28,604.92,0.30329662]
[1745561063694,1.10707708,606.27,604.92,0.30329662]
[1745561063894,1.10707708,606.27,604.92,1.79429662]
[1745561064099,1.10707708,606.26,604.93,0.30329662]
[1745561064602,1.10707708,606.25,604.92,1.491]
[1745561064792,1.10707708,606.25,604.93,0.30329634]
[1745561065098,1.10707708,606.24,604.93,0.30329634]
[1745561065599,1.10707708,606.23,604.93,0.30329634]
[1745561065798,1.10707708,606.22,604.93,0.30329634]
[1745561066195,1.10707708,606.21,604.94,0.3032973]
[1745561066393,1.10707708,606.21,604.95,0.3032973]
[1745561066594,1.10707708,606.2,604.96,0.3032973]
[1745561066795,1.10707708,606.19,604.93,0.3032973]
[1745561067600,1.10707708,606.18,604.93,0.3032973]
[1745561067800,1.10707708,606.18,604.92,0.3032973]
[1745561068001,1.10707708,606.18,604.93,0.3032973]
[1745561068303,1.10707708,606.17,604.94,0.3032973]
[1745561068503,1.10707708,606.17,604.92,0.3032973]
[1745561068702,1.10707708,606.16,604.93,0.3032973]
[1745561069001,1.10707708,606.16,604.94,0.3032973]
[1745561069202,1.10707708,606.15,604.92,0.3032973]
[1745561069705,1.10707708,606.14,604.92,0.3032973]
[1745561070301,1.10707708,606.13,604.92,0.3032973]
[1745561070507,1.10707708,606.13,604.91,0.28739667]
[1745561070706,1.10707708,606.13,604.92,0.3032973]
[1745561070902,1.10707708,606.12,604.92,0.3032973]
[1745561071208,1.10707708,606.11,604.92,0.3032973]
[1745561071807,1.10707708,606.1,604.92,0.3032973]
[1745561072107,1.10707708,606.1,604.91,0.28739667]
[1745561072408,1.10707708,606.1,604.92,0.30327597]
[1745561072608,1.10707708,606.09,604.92,0.30327597]
[1745561073009,1.10707708,606.09,605.0,1.04369045]
[1745561073205,1.10707708,606.08,605.01,0.30327597]
[1745561073605,1.10707708,606.07,605.0,1.04369045]
[1745561073810,1.10707708,606.07,605.01,0.30328156]
[1745561074108,1.10707708,606.06,605.01,0.30328156]
[1745561074415,1.10707708,606.05,605.01,0.30328156]
[1745561074905,1.10707708,606.04,605.01,0.30328156]
[1745561075209,1.10707708,606.03,605.0,1.04369045]
[1745561075409,1.10707708,606.03,605.01,0.30328053]
[1745561075706,1.10707708,606.02,605.05,1.04369045]
[1745561076012,1.10707708,606.02,605.06,0.30328053]
[1745561076209,1.10707708,606.01,605.06,0.30328053]
[1745561076605,1.10707708,606.0,605.06,0.30328053]
[1745561076903,1.26410234,607.06,605.07,0.30328133]
[1745561076904,1.10707708,605.99,605.07,0.30328133]
[1745561077109,1.10707708,605.99,605.08,0.30328133]
[1745561077311,1.10707708,605.99,605.09,0.30328133]
[1745561077506,1.10707708,605.99,605.1,0.30328133]
[1745561077703,1.10707708,605.98,605.06,0.30328133]
[1745561078020,1.10707708,605.97,605.06,0.30328133]
[1745561078608,1.10707708,605.96,605.06,0.30328133]
[1745561079405,1.10707708,605.95,605.06,0.30328133]
[1745561079708,1.09593975,605.95,605.06,0.30328133]
[1745561079909,1.26410234,607.07,605.06,0.30328133]
[1745561080613,0.28726737,607.06,605.06,0.30328133]
[1745561082214,1.26410234,607.07,605.06,0.30328133]
[1745561082413,2.15072968,607.45,605.06,0.30328133]
[1745561082414,1.26410234,606.81,605.17,1.04369045]
[1745561082714,1.26410234,606.81,605.18,0.30328133]
[1745561083009,1.26410234,606.81,605.19,0.30328053]
[1745561083210,1.26410234,606.81,605.18,0.30328053]
[1745561083409,1.26410234,606.81,605.19,0.30328053]
[1745561083606,1.26410234,606.81,605.18,0.30328053]
[1745561083811,1.26410234,606.81,605.19,0.30328053]
[1745561084121,1.26410234,606.81,605.2,0.30328053]
[1745561084325,1.26410234,606.82,605.18,0.30328053]
[1745561084612,1.26410234,606.82,605.19,0.30328053]
[1745561084816,1.26410234,606.82,605.18,0.30328053]
[1745561085010,1.26410234,606.82,605.19,0.30328053]
[1745561085213,1.26410234,606.82,605.18,0.30328053]
[1745561085409,1.26410234,606.82,605.19,0.30328053]
[1745561085610,1.26410234,606.82,605.18,0.30328053]
[1745561085809,1.26410234,606.82,605.17,1.04369045]
[1745561087614,0.28726737,607.05,605.04,1.33097442]
[1745561087815,0.28726737,607.05,605.05,0.3032745]
[1745561088215,1.26410234,607.08,605.05,0.3032745]
[1745561088517,0.28726026,607.04,605.05,0.3032745]
[1745561088912,0.28726026,607.04,605.04,1.33095071]
[1745561089210,0.28726026,607.04,605.05,0.30327981]
[1745561091213,1.26410234,607.26,605.05,0.30327981]
[1745561091417,1.26410234,607.26,605.06,0.30327981]
[1745561091618,0.28723892,607.03,605.07,0.30327981]
[1745561091816,1.26410234,607.26,605.05,0.30327981]
[1745561092118,1.26410234,607.26,605.06,0.30328572]
[1745561092318,1.26410234,607.26,605.07,0.30328572]
[1745561092515,1.26410234,607.26,605.08,0.30328572]
[1745561092724,0.28723892,607.25,605.05,0.30328572]
[1745561093017,0.28723892,607.25,605.06,0.30328572]
[1745561093318,0.28723892,607.25,605.07,0.30328572]
[1745561093524,0.28723892,607.25,605.04,0.28723892]
[1745561093725,0.28723892,607.25,605.05,0.30328695]
[1745561094317,1.26410234,607.26,605.05,0.30328695]
[1745561094523,0.28723892,607.24,605.04,0.28723892]
[1745561094723,1.26410234,607.17,605.05,0.30328695]
[1745561095125,1.26410234,607.17,605.06,0.30328723]
[1745561095325,1.26410234,607.17,605.04,0.28723892]
[1745561096147,1.26410234,607.17,605.05,0.30328725]
[1745561097325,1.26410234,607.16,605.05,0.30328725]
[1745561097522,1.55135193,607.16,605.05,0.30328725]
[1745561099627,1.55135193,607.16,605.04,1.33094122]
[1745561099827,1.55135193,607.16,605.06,0.3032612]
[1745561100028,0.28724959,607.16,605.07,0.3032612]
[1745561100225,1.26410234,607.25,605.08,0.3032612]
[1745561100433,1.26410234,607.25,605.09,0.3032612]
[1745561100729,0.2872401,607.15,605.1,0.3032612]
[1745561100928,1.26410234,607.25,605.05,0.3032612]
[1745561101123,1.26410234,607.25,605.06,0.3032612]
[1745561101427,1.26410234,607.25,605.07,0.3032612]
[1745561101628,0.28721639,607.24,605.08,0.3032612]
[1745561101825,0.28721639,607.24,605.06,0.3032612]
[1745561102228,0.28721639,607.24,605.06,1.274]
[1745561102433,0.28721639,607.24,605.07,0.30323863]
[1745561103232,1.26410234,607.29,605.07,0.30323863]
[1745561103532,0.28720928,607.23,605.07,0.30323863]
[1745561103731,0.28720928,607.23,605.06,1.56120928]
[1745561103925,0.28720928,607.23,605.07,0.30323828]
[1745561104635,0.28720928,607.23,605.06,1.56120928]
[1745561104832,0.28720928,607.23,605.07,0.3032381]
[1745561105332,0.28720928,607.23,605.06,1.56120928]
[1745561105531,0.28720928,607.23,605.07,0.3032381]
[1745561106234,1.26410234,607.37,605.07,0.3032381]
[1745561106726,1.26410234,607.37,605.06,1.5611998]
[1745561106929,1.26410234,607.37,605.07,0.30323757]
[1745561107230,1.26410234,607.37,605.08,1.276]
[1745561107433,1.26410234,607.37,605.09,0.30323757]
[1745561107634,0.2871998,607.36,605.09,0.30323757]
[1745561109234,1.26410234,607.4,605.09,0.30323757]
[1745561109632,0.2872081,607.35,605.09,0.30323757]
[1745561109840,0.2872081,607.35,605.08,1.276]
[1745561110131,0.2872081,607.35,605.09,0.30325672]
[1745561112237,1.26410234,607.39,605.09,0.30325672]
[1745561112731,0.28720928,607.34,605.09,0.30325672]
[1745561112933,1.26410234,607.3,605.1,0.30324408]
[1745561113137,1.26410234,607.3,605.08,1.56320928]
[1745561113759,1.26410234,607.3,605.09,0.30325513]
[1745561114438,1.26410234,607.31,605.08,1.56320928]
[1745561114631,1.26410234,607.31,605.09,0.30325719]
[1745561114833,1.26410234,607.31,605.09,1.83925719]
[1745561115039,1.26410234,607.31,605.1,0.30325719]
[1745561115541,0.28721758,607.3,605.1,0.30325719]
[1745561116634,1.26410234,607.29,605.1,0.30325719]
[1745561117540,1.26410234,607.29,605.09,1.82321758]
[1745561117742,1.26410234,607.29,605.1,0.30325901]
[1745561118540,0.28721995,607.28,605.1,0.30325901]
[1745561118840,1.26410234,607.11,605.1,0.30325901]